Cogmind - Beta 10.2 @@@ ROGUE MODE // 2020.12.29 @ 02:04:29 Player: Wyvric Result: Destroyed 0B10! Performance ------------- Evolutions (9) 4500 Regions Visited (28) 5600 Robots Destroyed (235) 1175 Value Destroyed (14747) 14747 Prototype IDs (46) 920 Alien Tech Used (3) 600 Bonus (19526) 19526 TOTAL SCORE: 47068 Bonus ------- High Alert Combat Kills 1059 Follower Combat Kills 3336 Entered Garrisons 1400 Used RIF Installer 3500 Aligned with FarCom 300 Scanned by Researcher 500 Met Sigix 2000 Escaped with Sigix 5000 Win 3000 Friendly Fire -569 Cogmind --------- Core Integrity 1600/1600 Matter 20/300 Energy 60/430 System Corruption 0% Temperature Cool (11) Movement Hovering (48) Location Tau Ceti IV Orbit Parts ------- > --- POWER (2) -------- Graviton Reactor Light Quantum Reactor > --- PROPULSION (6) --- Improved Antigrav System Combat Antigrav System Antigrav Array Experimental Gyrokinetic Inverter Experimental Gyrokinetic Inverter > --- UTILITY (15) ----- Advanced Cryofiber Web Improved Coolant Injector Medium Storage Unit Advanced Melee Analysis Suite Advanced Target Analyzer Heavy Regenerative Plating SHELL Armor Advanced System Shield Relay Coupler [NC] (32) Relay Coupler [NC] (35) Relay Coupler [Behemoth] (7) > --- WEAPON (2) ------- Sigix Broadsword > --- INVENTORY (8) ---- High-powered Transdimensional Reconstructor Advanced Remote Datajack Sigix Containment Pod Peak State ------------ > --- POWER ------------ Graviton Reactor Light Quantum Reactor > --- PROPULSION ------- Improved Antigrav System Combat Antigrav System Antigrav Array Experimental Gyrokinetic Inverter Experimental Gyrokinetic Inverter > --- UTILITY ---------- Improved Coolant Injector Medium Storage Unit Large Storage Unit High-capacity Storage Unit Advanced Energy Well Advanced Target Analyzer Advanced Core Analyzer Medium Regenerative Plating Medium Regenerative Plating Heavy Regenerative Plating SHELL Armor Relay Coupler [NC] > --- WEAPON ----------- Sigix Broadsword > --- INVENTORY -------- Improved Antigrav System Improved Antigrav System Improved Antigrav System Improved Antigrav System Improved Matter Compressor Relay Coupler [NC] Relay Coupler [NC] Relay Coupler [Swarmer] Relay Coupler [Swarmer] Relay Coupler [Behemoth] High-powered Transdimensional Reconstructor High-powered Transdimensional Reconstructor Terrabomb Terrabomb Advanced Remote Datajack Sigix Containment Pod [Rating: 203] Favorites ----------- Power Light Antimatter Reactor Engine Improved Deuterium Engine Power Core Micro Nuclear Core Reactor Light Antimatter Reactor Propulsion Myomer Leg Treads Light Treads Leg Myomer Leg Hover Unit Antigrav Array Flight Unit VTOL Module Utility High-capacity Storage Unit Device Advanced Heat Sink Storage High-capacity Storage Unit Processor Advanced Signal Interpreter Hackware Relay Coupler [NC] Protection Improved Medium Armor Plating Artifact Phase Redirector Weapon Heavy Pick Energy Gun Gamma Rifle Energy Cannon EM Pulse Cannon Ballistic Gun Flak Gun Ballistic Cannon Battle Cannon Launcher Heavy Rocket Launcher Special Weapon Improved Remote Datajack Impact Weapon Maul Slashing Weapon Greatsword Piercing Weapon Heavy Pick Build | -11 -10 -10 -9 -9 -9 -8 -8 -8 -8 -7 -7 -6 -6 -6 -5 -5 -5 -5 -4 -4 -3 -3 -3 -3 -2 -2 -2 -1 ------- Run | Scr Mat Min Mat Min Exi Min Mat Gar Mat Fac Gar Fac Gar Fac Fac Was Fac Gar Fac Gar Res Gar Res Qua Res Gar Tes Acc Slots Evolved 18 | . . . 2 . . . 2 . . 2 . 2 . . 2 . . . 2 . 2 . . . 2 . . 2 Power 1 | . . . . . . . . . . . . . . . . . . . . . . . . . . . . 1 Propulsion 4 | . . . 2 . . . . . . . . . . . . . . . . . . . . . 2 . . . Utility 13 | . . . . . . . 2 . . 2 . 2 . . 2 . . . 2 . 2 . . . . . . 1 Weapon . | . . . . . . . . . . . . . . . . . . . . . . . . . . . . . Parts Attached 670 | 7 10 4 7 . 10 . 34 10 4 9 18 20 37 36 12 3 25 7 13 54 23 52 58 57 12 75 37 36 Power 40 | 1 1 . 3 . . . 3 1 . 2 1 1 2 2 . 1 2 . 1 3 . 4 4 2 1 3 . 2 Engine 14 | 1 1 . 3 . . . 2 1 . 1 1 1 1 . . 1 1 . . . . . . . . . . . Core 7 | . . . . . . . 1 . . 1 . . 1 2 . . 1 . . 1 . . . . . . . . Reactor 19 | . . . . . . . . . . . . . . . . . . . 1 2 . 4 4 2 1 3 . 2 Propulsion 144 | 2 4 . 2 . 4 . 10 3 4 . 6 3 11 5 5 2 4 3 3 12 3 11 6 2 6 20 6 7 Treads 62 | . 4 . 2 . 1 . 10 3 4 . 1 . 11 3 1 . . . 2 1 . 8 5 1 1 4 . . Leg 56 | 2 . . . . . . . . . . 5 3 . 2 3 . 1 . 1 7 3 3 . . 5 16 5 . Wheel . | . . . . . . . . . . . . . . . . . . . . . . . . . . . . . Hover 14 | . . . . . . . . . . . . . . . . . . 1 . 4 . . . 1 . . 1 7 Flight 12 | . . . . . 3 . . . . . . . . . 1 2 3 2 . . . . 1 . . . . . Utility 252 | 1 2 1 . . 5 . 11 2 . 5 3 8 14 11 3 . 14 2 5 18 12 14 32 27 2 24 14 22 Device 90 | . . . . . . . 1 . . . . . . 1 . . 6 . 1 10 3 6 14 16 1 14 9 8 Storage 48 | 1 2 1 . . 4 . 5 1 . 1 . 3 1 1 . . 1 1 2 1 6 2 6 2 1 2 1 3 Processor 14 | . . . . . . . 2 . . . 1 . . . 1 . 2 1 1 . . 1 1 2 . 1 . 1 Hackware 56 | . . . . . . . . . . 1 . 4 2 6 . . 5 . . 5 3 4 8 5 . 5 3 5 Protection 43 | . . . . . 1 . 3 1 . 3 2 1 11 3 2 . . . 1 2 . 1 3 2 . 1 1 5 Artifact 1 | . . . . . . . . . . . . . . . . . . . . . . . . . . 1 . . Weapon 234 | 3 3 3 2 . 1 . 10 4 . 2 8 8 10 18 4 . 5 2 4 21 8 23 16 26 3 28 17 5 Energy Gun 26 | . . . . . . . . . . . . . . 4 . . . 1 2 9 4 6 . . . . . . Energy Cannon 10 | . . . . . . . 5 . . . . . . . . . . . . . . . 3 2 . . . . Ballistic Gun 49 | 3 1 1 . . . . 2 2 . . . 1 . . . . 1 1 1 5 . 6 4 9 . 9 3 . Ballistic Cannon 6 | . . 1 1 . . . . . . . . . . . . . . . . 1 2 1 . . . . . . Launcher 20 | . 2 . . . 1 . 1 . . . 7 . 3 2 1 . . . . . . . . 1 . 2 . . Special Weapon 59 | . . . . . . . . . . 1 . 3 3 6 2 . 1 . 1 6 2 10 7 5 . 5 5 2 Impact Weapon 2 | . . 1 1 . . . . . . . . . . . . . . . . . . . . . . . . . Slashing Weapon 37 | . . . . . . . 2 2 . 1 1 2 . 1 . . 3 . . . . . 1 4 2 10 5 3 Piercing Weapon 25 | . . . . . . . . . . . . 2 4 5 1 . . . . . . . 1 5 1 2 4 . Special Melee Weapon . | . . . . . . . . . . . . . . . . . . . . . . . . . . . . . Unidentified Prototypes 17 | . . . 1 . . . . . . . . 1 . 1 1 . 1 . . . . 1 6 . . . 2 3 Parts Lost 126 | . 1 2 2 . 3 . . 3 . . 4 . 17 7 5 2 1 9 1 23 8 7 . 11 3 10 7 . Power 14 | . 1 . 1 . . . . 1 . . 1 . 2 1 1 . . . . 1 . 3 . . 1 1 . . Propulsion 47 | . . . 1 . 3 . . . . . 3 . 9 4 3 2 . 2 . 7 2 3 . 1 1 5 1 . Utility 45 | . . . . . . . . . . . . . 4 1 1 . 1 5 1 8 3 . . 10 1 4 6 . Weapon 20 | . . 2 . . . . . 2 . . . . 2 1 . . . 2 . 7 3 1 . . . . . . Highest Loss Streak 17 | . 1 1 2 . 3 . . 1 . . 3 . 7 2 4 2 1 5 1 17 3 4 . 3 2 4 5 . Average Slot Usage (%) 90 | . 98 100 94 88 97 22 92 96 89 89 91 94 99 95 84 31 56 66 69 78 95 97 91 83 84 92 94 79 Engine 3 | . 13 14 9 11 10 . 5 8 9 5 6 6 3 . . 3 1 . . . . . . . . . . . Reactor 1 | . . . . . . . . . . . . . . . . . . . 2 2 4 3 4 4 3 3 4 8 Treads 14 | . 17 28 40 33 31 . 31 35 35 30 6 . 24 21 7 3 . . 5 2 1 7 13 6 7 2 . . Leg 7 | . 10 . . . . . . . . . 22 26 . 2 9 4 3 5 1 9 16 10 . . 6 20 25 . Flight 1 | . . . . . 11 11 . . . . . . . . . 8 13 6 8 . . . . . . . . . Device 4 | . . . . . . . . . . . . . . . . . 12 7 2 11 12 7 4 11 12 4 4 7 Storage 26 | . 27 28 22 22 21 11 24 35 36 34 38 36 34 38 29 5 3 4 8 9 23 24 28 23 24 27 21 6 Processor 8 | . . . . . . . 7 . . . 1 6 6 3 4 . 3 7 14 15 14 14 10 10 13 16 15 7 Hackware 7 | . . . . . . . . . . . . 7 1 7 3 . 10 24 15 10 7 18 16 12 8 8 14 14 Protection 2 | . . . . . . . 2 . . 8 5 . 10 1 12 . . . 2 2 3 . 1 . . . . 10 Ballistic Gun 2 | . 25 22 1 . . . 5 11 . . . . . . . . . 2 . 2 . 1 2 3 . 1 . . Special Weapon 1 | . . . . . . . . . . . . 2 . 3 . 3 . . 3 2 2 3 2 1 . 1 1 . Slashing Weapon 1 | . . . . . . . 2 3 9 6 6 1 . . . . 1 . . . . . 2 . 3 2 1 3 Piercing Weapon 1 | . . . . . . . . . . . . 5 8 5 8 . . . . . . . . 2 1 . 2 . Naked Turns 1 | . . . . . . . . . . . . . . . . . 1 . . . . . . . . . . . Heaviest Build 245 | 13 42 42 45 45 45 4 93 103 100 118 124 143 152 152 149 12 25 21 65 70 201 217 237 209 200 214 227 245 Greatest Support 201 | 20 46 46 92 69 69 5 82 102 102 102 102 50 100 100 47 18 26 21 98 75 80 112 138 135 145 201 162 137 Greatest Overweight (x) 44 | . 2 . . . . . 1 2 1 1 4 3 5 44 6 . 2 3 3 4 3 3 3 2 2 7 1 1 Average Overweight (x) . | . 1 . . . . . . . . . 1 2 1 1 4 . . . . . 2 1 1 1 1 1 1 . Largest Inventory Capacity 52 | 6 16 16 16 16 16 6 30 30 30 36 36 44 44 44 38 38 8 8 12 12 44 50 52 44 44 48 44 44 Average Capacity 33 | 5 15 16 16 16 15 6 18 29 30 33 36 40 37 42 38 10 6 4 10 12 42 44 49 44 44 47 44 10 Most Carried 52 | 6 16 16 16 16 16 6 30 30 30 36 36 44 44 44 38 38 8 8 12 12 43 50 52 44 44 48 44 43 Average Carried 31 | 5 14 14 15 16 15 6 17 28 29 31 34 38 35 41 35 7 6 3 9 10 27 43 49 43 42 46 42 9 Final Capacity 50 | 6 16 16 16 16 6 6 30 30 30 36 36 44 44 38 38 4 8 4 12 12 44 50 44 44 44 44 44 8 Final Carried 50 | 6 14 16 16 16 6 6 30 30 30 35 36 44 43 35 38 4 8 2 12 11 43 50 43 42 43 43 44 4 Class Distribution -------------------- 30% | Botlord-Mutant 25% | Hauler-Mutant 16% | Mutant 15% | Bothacker-Mutant 5% | Botlord-Gladiator 3% | Hacker-Mutant 3% | Scavenger-Mutant Dominant Class ---------------- Mutant | -10/Materials Mutant | -10/Mines Mutant | -9/Materials Mutant | -9/Mines Mutant | -9/Exiles Mutant | -8/Mines Hauler-Mutant | -8/Materials Hauler-Mutant | -8/Garrison Hauler-Mutant | -8/Materials Hauler-Mutant | -7/Factory Hauler-Mutant | -7/Garrison Bothacker-Mutant | -6/Factory Hauler-Mutant | -6/Garrison Bothacker-Mutant | -6/Factory Bothacker-Mutant | -5/Factory Mutant | -5/Waste Hacker-Mutant | -5/Factory Hacker-Mutant | -5/Garrison Hacker-Mutant | -4/Factory Scavenger-Mutant | -4/Garrison Botlord-Mutant | -3/Research Botlord-Mutant | -3/Garrison Botlord-Mutant | -3/Research Hauler-Mutant | -3/Quarantine Hauler-Gladiator | -2/Research Botlord-Gladiator | -2/Garrison Botlord-Mutant | -2/Testing Botlord-Mutant | -1/Access Resources | -11 -10 -10 -9 -9 -9 -8 -8 -8 -8 -7 -7 -6 -6 -6 -5 -5 -5 -5 -4 -4 -3 -3 -3 -3 -2 -2 -2 -1 ----------- Run | Scr Mat Min Mat Min Exi Min Mat Gar Mat Fac Gar Fac Gar Fac Fac Was Fac Gar Fac Gar Res Gar Res Qua Res Gar Tes Acc Matter Collected 11451 | 270 32 315 92 . . . 731 341 40 100 255 216 711 542 62 . 260 158 302 743 410 782 1197 1352 347 1396 440 357 Remotely . | . . . . . . . . . . . . . . . . . . . . . . . . . . . . . Salvage Created 11356 | . 305 215 265 . . . 1247 479 415 241 504 40 736 553 136 . 260 108 142 583 249 499 503 1158 644 1396 615 63 Parts 556 | . 26 9 7 . . . 81 25 27 8 27 5 41 26 7 . 10 6 11 24 10 17 31 57 17 46 32 6 Haulers Intercepted 3 | . . . . . . . 3 . . . . . . . . . . . . . . . . . . . . . Recyclers Shooed 1 | . . . . . . . . . . . . . . . . . 1 . . . . . . . . . . . Parts Field Recycled . | . . . . . . . . . . . . . . . . . . . . . . . . . . . . . Retrieved Matter . | . . . . . . . . . . . . . . . . . . . . . . . . . . . . . Parts Self-Destructed . | . . . . . . . . . . . . . . . . . . . . . . . . . . . . . Prevented . | . . . . . . . . . . . . . . . . . . . . . . . . . . . . . Kills | -11 -10 -10 -9 -9 -9 -8 -8 -8 -8 -7 -7 -6 -6 -6 -5 -5 -5 -5 -4 -4 -3 -3 -3 -3 -2 -2 -2 -1 ------- Run | Scr Mat Min Mat Min Exi Min Mat Gar Mat Fac Gar Fac Gar Fac Fac Was Fac Gar Fac Gar Res Gar Res Qua Res Gar Tes Acc Combat Hostiles Destroyed 216 | . 12 6 6 . . . 31 14 7 4 22 1 13 12 2 . 4 2 3 10 3 5 6 16 7 22 7 1 Melee 69 | . . . 5 . . . 1 2 7 4 4 1 7 4 2 . 4 . . . . . 1 2 7 10 7 1 Guns 76 | . 2 4 . . . . 16 12 . . . . . 4 . . . 2 3 8 2 2 3 11 . 7 . . Cannons 17 | . . 1 . . . . 12 . . . . . . . . . . . . 2 . . 1 1 . . . . AOE 45 | . 10 1 . . . . 2 . . . 18 . 5 4 . . . . . . . . . . . 5 . . Classes Destroyed 16 | . 4 . 1 . . . 2 2 . . . 1 . . . . . . . 1 . . 2 . . 1 2 . Worker 5 | . 2 . . . . . 1 . . . . . . 1 . . . . . . 1 . . . . . . . Builder 2 | . . . . . . . . . . . . . . . . . . . . . . . 1 . . . 1 . Tunneler 1 | . . . . . . . . . . . . . . . . . . . . . . . 1 . . . . . Hauler 3 | . . . . . . . 3 . . . . . . . . . . . . . . . . . . . . . Recycler 3 | . 2 . . . . . . . . . . . . . . . 1 . . . . . . . . . . . Watcher 3 | . . . . . . . 1 . 1 1 . . . . . . . . . . . . . . . . . . Swarmer 53 | . 6 . . . . . 15 7 . . 12 . . 1 . . 4 . 1 1 . . 1 . . 5 . . Grunt 87 | . 6 6 5 . . . 7 4 4 3 7 . 4 5 1 . . 1 . 5 1 2 1 9 7 9 . . Duelist 1 | . . . . . . . . . . . . . . . . . . . . . . . . . . 1 . . Researcher 1 | . . . . . . . . . . . . . . . . . . . . . . . . . . . 1 . Sentry 31 | . . . 1 . . . 9 1 3 1 2 . 5 3 1 . . . . 1 . 3 . . . 1 . . Specialist 5 | . . . . . . . . . . . . . . . . . . . . 1 . . . 2 . 2 . . Hunter 12 | . . . . . . . . 1 . . 1 . 1 . . . . . . . . . 3 2 . 1 3 . Programmer 24 | . . . . . . . . . . . . 1 2 3 . . . 1 2 2 2 . 2 3 . 2 3 1 Behemoth 3 | . . . . . . . . 1 . . . . 1 . . . . . . . . . . . . 1 . . Alpha 7 1 | . . . . . . . . . . . . . . . . . . . . . . . . . . . 1 . Best Kill Streak 17 | . 11 2 2 . . . 5 4 2 2 17 1 3 3 1 . 3 1 3 3 1 2 4 8 4 5 3 1 Combat Bots Only 17 | . 8 2 2 . . . 4 4 2 2 17 1 3 3 1 . 3 1 3 3 1 2 3 8 4 5 3 1 Max Kills in Single Turn 4 | . 3 1 1 . . . 4 2 1 1 4 1 2 2 1 . 1 1 1 1 1 1 1 1 1 2 1 1 Gunslinging 1 | . . . . . . . . 1 . . . . . . . . . . . . . . . . . . . . Exploded 4 | . 2 1 . . . . 1 . . . 4 . 2 2 . . . . . . . . . . . 2 . . Melee 1 | . . . 1 . . . 1 1 1 1 1 1 1 1 1 . 1 . . . . . 1 1 1 1 1 1 Uniques/NPCs Destroyed . | . . . . . . . . . . . . . . . . . . . . . . . . . . . . . Combat | -11 -10 -10 -9 -9 -9 -8 -8 -8 -8 -7 -7 -6 -6 -6 -5 -5 -5 -5 -4 -4 -3 -3 -3 -3 -2 -2 -2 -1 -------- Run | Scr Mat Min Mat Min Exi Min Mat Gar Mat Fac Gar Fac Gar Fac Fac Was Fac Gar Fac Gar Res Gar Res Qua Res Gar Tes Acc Damage Taken 36292 | . 417 310 709 15 237 . 1094 857 274 54 1329 282 3340 2866 1273 60 459 1123 838 3863 1379 1390 752 4011 1052 5104 2337 867 Core 4747 | . 42 49 147 . 17 . 174 6 19 . 134 16 423 273 105 60 373 274 138 927 176 186 40 247 70 732 119 . Absorbed by Shields 311 | . . . . . . . . . . . 43 . . . . . . 41 . 26 . . . . 73 94 34 . Reduced by Siege Mode 506 | . . . . . . . . . . . . . . . . . . . . 77 . . 19 284 . 126 . . Redirected to Core 323 | . . . . . . . . . . . . . . . . . . . . . . . . . . 323 . . Core Remaining (%) 53 | 100 . 63 . . . 59 . . 63 . 80 . . 16 . . . 18 . 7 . . . 50 . . 36 100 Volleys Fired 667 | . 21 23 1 . . . 60 25 . 4 16 14 41 37 2 . 3 19 15 77 40 53 38 77 . 68 26 7 Largest 2 | . 2 2 1 . . . 2 2 . 1 2 1 1 1 1 . 1 1 2 2 2 2 2 2 . 2 2 1 Hottest 188 | . 50 59 39 . . . 123 56 . 30 78 30 39 39 30 . 40 65 138 151 188 150 81 110 . 76 76 50 Shots Fired 959 | . 31 43 1 . . . 97 48 . 4 23 14 41 56 2 . 3 19 26 103 62 61 47 125 . 114 32 7 Gun 597 | . 19 40 . . . . 50 48 . . . . . 19 . . 1 19 22 82 47 27 18 97 . 92 16 . Cannon 84 | . . 2 1 . . . 45 . . . . . . . . . . . . 10 4 5 6 11 . . . . Launcher 94 | . 12 1 . . . . 2 . . . 23 . 35 14 . . . . . . . . . . . 7 . . Special 184 | . . . . . . . . . . 4 . 14 6 23 2 . 2 . 4 11 11 29 23 17 . 15 16 7 Kinetic 457 | . 19 42 1 . . . 50 48 . . . . . . . . 1 13 3 45 4 8 18 97 . 92 16 . Thermal 138 | . . . . . . . 17 . . . . . . 19 . . . . 19 47 31 5 . . . . . . Explosive 58 | . 12 1 . . . . 2 . . . 13 . 9 14 . . . . . . . . . . . 7 . . Electromagnetic 126 | . . . . . . . 28 . . . 10 . 26 . . . . 6 . . 16 23 6 11 . . . . Robot Hit Streak 32 | . 8 12 . . . . 28 23 . 11 12 9 16 21 3 . 6 9 7 12 13 10 10 30 . 32 9 5 Robot Miss Streak 6 | . 1 2 . . . . 6 5 . . 2 2 1 3 . . . 4 3 3 4 3 1 4 . 2 1 1 Penetration Max 1 | . . . . . . . . . . . . . . . . . . . . . . . 1 1 . . . . Secondary Targets 13 | . . . . . . . 3 3 . . . . . . . . . . . 1 . . 1 2 . 2 1 . Max Gunslinging Chain 1 | . . . . . . . 1 1 . . . . . . . . . . . 1 . . 1 1 . 1 1 . Autonomous 19 | . . . . . . . . . . . . . . 19 . . . . . . . . . . . . . . Shots Hit Robots 956 | . 23 30 37 . . . 85 44 16 11 27 15 63 64 14 . 11 13 17 72 43 39 44 109 14 125 32 8 Core Hits 475 | . 25 14 9 . . . 70 46 9 4 38 2 32 28 5 . 8 5 5 26 9 9 14 39 12 54 11 1 Critical Hits 55 | . . . . . . . 1 . 2 . . . 3 2 . . 1 . . 3 . 4 2 12 6 15 4 . Critical Kills 16 | . . . . . . . . . 1 . . . 1 . . . . . . 1 . . 2 2 5 2 2 . Critical Parts Destroyed 29 | . . . . . . . 1 . 1 . . . . 1 . . 1 . . 1 . 4 . 8 1 9 2 . Melee Attacks 438 | . . 3 54 . . . 10 10 40 12 18 14 49 32 18 . 11 . . . . . 14 43 18 42 32 18 Impact 57 | . . 3 54 . . . . . . . . . . . . . . . . . . . . . . . . . Slashing 210 | . . . . . . . 10 10 40 12 18 2 . 4 . . 11 . . . . . 10 16 7 39 13 18 Piercing 171 | . . . . . . . . . . . . 12 49 28 18 . . . . . . . 4 27 11 3 19 . Sneak Attacks 15 | . . . . . . . 1 . . 3 1 . . 2 . . 1 . . . . . 3 . . 4 . . Combat Hostiles 9 | . . . . . . . 1 . . 3 1 . . 1 . . . . . . . . 1 . . 2 . . Follow-up Attacks 16 | . . . 4 . . . . . . . . 1 5 1 1 . . . . . . . . . 4 . . . Damage Inflicted 30997 | . 1060 426 802 . . . 2029 1037 774 725 2662 190 2293 2231 398 . 365 390 248 1685 974 587 1061 3112 742 5958 1112 136 Guns 11347 | . 207 329 . . . . 634 901 . . . . . 587 . . 21 383 245 1347 974 553 424 2251 . 2268 223 . Cannons 1894 | . . 40 . . . . 968 . . . . . . . . . . . . 338 . . 182 366 . . . . Explosions 6009 | . 853 54 . . . . 300 . . . 1883 . 1337 797 . . . . . . . . . . . 785 . . Melee 11543 | . . . 796 . . . 90 136 774 725 779 190 956 793 398 . 302 . . . . . 455 495 724 2905 889 136 Ramming 170 | . . 3 6 . . . 37 . . . . . . 54 . . 42 7 3 . . . . . 18 . . . Kinetic 8513 | . 207 369 . . . . 634 901 . . . . . . . . 21 310 26 859 . 20 424 2251 . 2268 223 . Thermal 2904 | . . . . . . . 385 . . . . . . 587 . . . . 219 826 823 64 . . . . . . Explosive 5172 | . 853 54 . . . . 280 . . . 1607 . 796 797 . . . . . . . . . . . 785 . . Electromagnetic 2695 | . . . . . . . 603 . . . 276 . 541 . . . . 73 . . 151 503 182 366 . . . . Impact 796 | . . . 796 . . . . . . . . . . . . . . . . . . . . . . . . . Slashing 7593 | . . . . . . . 90 136 774 725 779 45 . 205 . . 302 . . . . . 232 454 239 2731 745 136 Piercing 3154 | . . . . . . . . . . . . 145 956 588 398 . . . . . . . 223 41 485 174 144 . Highest Corruption 17 | . . . . . . . 1 1 1 . . . 3 5 . 8 11 9 6 8 1 1 1 10 . 2 17 . Average Corruption 3 | . . . . . . . 1 1 1 . . . 2 3 . 8 9 8 5 7 1 1 1 6 . 1 9 . Corruption Purged 20 | . . . . . . . . . . . . . . . . . 4 1 . . . . 2 11 . 2 . . Effects 196 | . . . . . . . 6 3 5 . . . 14 23 . 5 20 8 5 56 1 8 4 23 . 2 13 . Message Errors 48 | . . . . . . . 4 3 1 . . . 1 5 . 1 1 4 2 10 . 4 . 6 . 1 5 . Matter Fused 38 | . . . . . . . . . . . . . 4 7 . 1 4 1 . 15 . . . 5 . . 1 . Heat Flow Errors 18 | . . . . . . . . . . . . . 2 2 . 2 2 . . 5 . . . 3 . . 2 . Energy Discharges 19 | . . . . . . . 1 . 2 . . . 2 2 . . 2 1 1 4 . 2 1 . . . 1 . Parts Rejected 2 | . . . . . . . . . . . . . . 1 . 1 . . . . . . . . . . . . Data Loss (minor) 31 | . . . . . . . . . 2 . . . 5 3 . . 2 1 . 6 . 1 3 4 . 1 3 . Data Loss (major) 6 | . . . . . . . . . . . . . . . . . 3 . 1 1 . . . 1 . . . . Misfires 3 | . . . . . . . . . . . . . . . . . . . . 3 . . . . . . . . Misdirections 7 | . . . . . . . . . . . . . . . . . 4 . . . . . . 2 . . 1 . Targeting Errors 22 | . . . . . . . 1 . . . . . . 3 . . 2 1 1 10 1 1 . 2 . . . . Weapon Failures 2 | . . . . . . . . . . . . . . . . . . . . 2 . . . . . . . . Overload Shots . | . . . . . . . . . . . . . . . . . . . . . . . . . . . . . Overflow Damage 826 | . 6 . 30 . . . 19 . 9 231 102 6 58 17 31 . 9 . . 43 . . 155 4 . 106 . . Projectiles 66 | . . . . . . . 19 . . . . . . . . . . . . 43 . . . 4 . . . . Explosions 162 | . 6 . . . . . . . . . 27 . 36 17 . . . . . . . . . . . 76 . . Melee 598 | . . . 30 . . . . . 9 231 75 6 22 . 31 . 9 . . . . . 155 . . 30 . . Knockbacks 5 | . . . 1 . . . 1 . . . . . . . . . . 1 . 2 . . . . . . . . Impact 3 | . . . 1 . . . 1 . . . . . . . . . . 1 . . . . . . . . . . Kinetic 2 | . . . . . . . . . . . . . . . . . . . . 2 . . . . . . . . Secondary . | . . . . . . . . . . . . . . . . . . . . . . . . . . . . . Self-Inflicted Damage 300 | . 75 . . . . . . . . . 42 . 71 4 . . 19 3 . . . . . . . 86 . . Shots 11 | . 3 . . . . . . . . . 3 . 2 1 . . . . . . . . . . . 2 . . Rammed 28 | . . 1 1 . . . 6 . . . . . . 4 . . 12 1 1 . . . . . 2 . . . Targets Rammed 28 | . . 1 1 . . . 6 . . . . . . 4 . . 12 1 1 . . . . . 2 . . . Kicked . | . . . . . . . . . . . . . . . . . . . . . . . . . . . . . Crushed . | . . . . . . . . . . . . . . . . . . . . . . . . . . . . . Highest Temperature 259 | . 7 9 2 . . . 232 27 . 3 48 . 187 243 8 166 155 9 14 225 113 209 119 142 . 40 259 199 Average Temperature 91 | . 4 3 2 . . . 47 11 . 3 25 . 51 65 6 85 72 4 8 96 44 61 19 42 . 16 80 143 Received Heat Transfer 6424 | . 114 180 321 9 42 . 324 174 99 33 277 27 600 726 198 . . 330 105 759 252 81 87 696 176 522 193 99 Effects 1 | . . . . . . . . . . . . . . . . . . . . 1 . . . . . . . . Interference 1 | . . . . . . . . . . . . . . . . . . . . 1 . . . . . . . . Siege Activations 6 | . . . . . . . . . . . . . . . . . . . . 1 . . 1 2 . 2 . . Total Turns 226 | . . . . . . . . . . . . . . . . . . . . 33 . . 18 111 . 64 . . Longest Duration 92 | . . . . . . . . . . . . . . . . . . . . 33 . . 18 92 . 60 . . Robots Corrupted 7 | . . . . . . . . . . . . . 1 . . . . . . . . 3 1 2 . . . . Combat Hostiles 7 | . . . . . . . . . . . . . 1 . . . . . . . . 3 1 2 . . . . Parts Fried 16 | . . . 1 . . . 3 . . . . . 2 . . . . . . . . 6 2 2 . . . . Impact Corruptions 3 | . . . 3 . . . . . . . . . . . . . . . . . . . . . . . . . Robots Melted 1 | . . . . . . . . . . . . . . . . . . . . . 1 . . . . . . . Combat Hostiles 1 | . . . . . . . . . . . . . . . . . . . . . 1 . . . . . . . Parts Melted 12 | . . . . . . . . . . . . . . 2 . . . . . 3 5 . . . . . 2 . Heat Transferred 4490 | . . . . . . . 642 . . . . . . 666 . . . . 411 1735 925 111 . . . . . . Parts Sabotaged . | . . . . . . . . . . . . . . . . . . . . . . . . . . . . . Parts Stolen . | . . . . . . . . . . . . . . . . . . . . . . . . . . . . . Parts Stripped . | . . . . . . . . . . . . . . . . . . . . . . . . . . . . . Power Chain Reactions 1 | . . . . . . . 1 . . . . . . . . . . . . . . . . . . . . . Missiles Intercepted . | . . . . . . . . . . . . . . . . . . . . . . . . . . . . . Alert | -11 -10 -10 -9 -9 -9 -8 -8 -8 -8 -7 -7 -6 -6 -6 -5 -5 -5 -5 -4 -4 -3 -3 -3 -3 -2 -2 -2 -1 ------- Run | Scr Mat Min Mat Min Exi Min Mat Gar Mat Fac Gar Fac Gar Fac Fac Was Fac Gar Fac Gar Res Gar Res Qua Res Gar Tes Acc Peak Influence 1173 | . 365 287 181 . . 15 553 881 574 260 709 371 383 514 281 30 138 185 252 452 332 534 328 509 166 1173 876 723 Initial 659 | . . 142 43 . . . 5 359 429 113 89 371 21 200 251 30 17 35 96 46 254 95 300 117 25 124 659 486 Average 308 | . 81 181 71 . . 13 174 728 367 165 592 117 169 240 215 25 62 113 176 206 190 343 221 177 120 696 770 555 Maximum Alert Level 4 | . 1 1 . . . . 2 3 2 1 3 1 1 2 1 . . . 1 2 1 2 1 2 . 4 3 3 Low Security (%) 44 | 100 86 51 100 100 . 100 68 . . 60 14 67 64 29 23 100 100 100 87 38 65 23 35 73 100 8 . . Level 1 27 | . 13 48 . . . . 12 7 55 39 1 32 35 49 76 . . . 12 49 34 31 64 19 . 16 . . Level 2 15 | . . . . . . . 18 29 44 . 38 . . 20 . . . . . 12 . 45 . 6 . 10 10 95 Level 3 13 | . . . . . . . . 62 . . 46 . . . . . . . . . . . . . . 62 89 4 Level 4 . | . . . . . . . . . . . . . . . . . . . . . . . . . . 2 . . Level 5 . | . . . . . . . . . . . . . . . . . . . . . . . . . . . . . High Security . | . . . . . . . . . . . . . . . . . . . . . . . . . . . . . Max Security . | . . . . . . . . . . . . . . . . . . . . . . . . . . . . . Squads Dispatched 54 | . 2 . 1 . . . 5 . . 2 . 4 . 7 1 . 2 . 3 . 6 . 2 11 2 . 6 . Investigation 11 | . 2 . . . . . 2 . . 1 . 1 . . . . 1 . . . 1 . 1 1 1 . . . Extermination 8 | . . . . . . . . . . . . 1 . 1 1 . . . . . 1 . 1 2 . . 1 . Reinforcement 22 | . . . 1 . . . 2 . . 1 . 2 . 3 . . . . 1 . 2 . . 5 1 . 4 . Assault 3 | . . . . . . . . . . . . . . 2 . . . . . . . . . . . . 1 . Garrison 10 | . . . . . . . 1 . . . . . . 1 . . 1 . 2 . 2 . . 3 . . . . Intercept . | . . . . . . . . . . . . . . . . . . . . . . . . . . . . . Construction Impeded 3 | . . . . . . . . . . . . . . 1 . . . . . . 1 . . 1 . . . . Haulers Reinforced 1 | . . . . . . . . . . . . . . 1 . . . . . . . . . . . . . . Stealth | -11 -10 -10 -9 -9 -9 -8 -8 -8 -8 -7 -7 -6 -6 -6 -5 -5 -5 -5 -4 -4 -3 -3 -3 -3 -2 -2 -2 -1 --------- Run | Scr Mat Min Mat Min Exi Min Mat Gar Mat Fac Gar Fac Gar Fac Fac Was Fac Gar Fac Gar Res Gar Res Qua Res Gar Tes Acc Distress Signals 16 | . . . 1 . . . 2 . 3 1 . . . 2 . . . . . . 3 . 1 1 . . 2 . Communications Jammed 46 | . . . . . . . . . . . . . . . . . . . . . . . 6 . . . 40 . Distress Signals 46 | . . . . . . . . . . . . . . . . . . . . . . . 6 . . . 40 . Times Spotted 557 | . 19 7 17 3 10 1 56 15 15 11 22 16 26 34 4 6 7 15 15 23 21 33 31 42 9 42 35 22 Peak Tracking Total 11 | . 6 2 7 3 10 1 6 4 3 3 11 4 5 6 3 6 4 6 6 6 5 5 6 7 7 6 6 6 Tactical Retreats 73 | . 3 2 1 . . . 10 1 1 1 4 4 5 4 1 . 1 6 2 2 2 7 2 4 . . 3 7 Traps | -11 -10 -10 -9 -9 -9 -8 -8 -8 -8 -7 -7 -6 -6 -6 -5 -5 -5 -5 -4 -4 -3 -3 -3 -3 -2 -2 -2 -1 ------- Run | Scr Mat Min Mat Min Exi Min Mat Gar Mat Fac Gar Fac Gar Fac Fac Was Fac Gar Fac Gar Res Gar Res Qua Res Gar Tes Acc Traps Triggered 68 | . 2 . . . . . 3 5 4 . 5 . 8 1 1 . 2 3 . 10 . 9 . 2 1 11 . 1 Indirectly . | . . . . . . . . . . . . . . . . . . . . . . . . . . . . . Trap Hack Attempts . | . . . . . . . . . . . . . . . . . . . . . . . . . . . . . Triggered . | . . . . . . . . . . . . . . . . . . . . . . . . . . . . . Disarmed . | . . . . . . . . . . . . . . . . . . . . . . . . . . . . . Reprogrammed . | . . . . . . . . . . . . . . . . . . . . . . . . . . . . . Reused . | . . . . . . . . . . . . . . . . . . . . . . . . . . . . . Traps Extracted . | . . . . . . . . . . . . . . . . . . . . . . . . . . . . . Installed . | . . . . . . . . . . . . . . . . . . . . . . . . . . . . . Triggered . | . . . . . . . . . . . . . . . . . . . . . . . . . . . . . Machines | -11 -10 -10 -9 -9 -9 -8 -8 -8 -8 -7 -7 -6 -6 -6 -5 -5 -5 -5 -4 -4 -3 -3 -3 -3 -2 -2 -2 -1 ---------- Run | Scr Mat Min Mat Min Exi Min Mat Gar Mat Fac Gar Fac Gar Fac Fac Was Fac Gar Fac Gar Res Gar Res Qua Res Gar Tes Acc Machines Disabled 40 | . 1 . . . . . 1 1 . . 3 . 3 2 . . . . 1 3 . 4 . 6 . 7 7 1 Max in Single Turn 2 | . 1 . . . . . 1 1 . . 1 . 1 2 . . . . . 1 . 1 . 1 . 2 1 1 Garrison Access 4 | . . . . . . . . . . . . . . 1 . . . . . . . . 1 . . . . 2 Garrison Relay 18 | . . . . . . . . 1 . . 2 . 3 . . . . . . 4 . 4 . . . 4 . . Machines Sabotaged . | . . . . . . . . . . . . . . . . . . . . . . . . . . . . . Garrisons Compromised . | . . . . . . . . . . . . . . . . . . . . . . . . . . . . . Overloaded Fab Kills . | . . . . . . . . . . . . . . . . . . . . . . . . . . . . . Fab Network Shutdowns . | . . . . . . . . . . . . . . . . . . . . . . . . . . . . . Hacking | -11 -10 -10 -9 -9 -9 -8 -8 -8 -8 -7 -7 -6 -6 -6 -5 -5 -5 -5 -4 -4 -3 -3 -3 -3 -2 -2 -2 -1 --------- Run | Scr Mat Min Mat Min Exi Min Mat Gar Mat Fac Gar Fac Gar Fac Fac Was Fac Gar Fac Gar Res Gar Res Qua Res Gar Tes Acc Machines Accessed 62 | . 3 1 2 . 1 . 11 . 2 2 . 3 . 2 1 . 3 . 3 . 3 . 5 12 1 . 3 4 Terminals 41 | . 2 1 2 . . . 8 . 2 1 . 2 . 1 1 . 1 . 1 . 2 . 2 10 . . 3 2 Fabricators 3 | . . . . . . . . . . . . . . . . . 1 . 1 . . . 1 . . . . . Repair Stations . | . . . . . . . . . . . . . . . . . . . . . . . . . . . . . Recycling Units 1 | . 1 . . . . . . . . . . . . . . . . . . . . . . . . . . . Scanalyzers 5 | . . . . . . . 2 . . . . . . 1 . . . . . . . . 1 1 . . . . Garrison Access 11 | . . . . . . . 1 . . 1 . 1 . . . . 1 . 1 . 1 . 1 1 1 . . 2 Total Hacks 169 | . 5 3 11 . 1 . 33 . 5 5 . 11 . 5 3 . 13 . 11 . 6 . 11 34 4 . 3 5 Successful 106 | . 5 1 6 . 1 . 24 . 1 4 . 5 . 4 2 . 9 . 9 . 4 . 5 21 2 . 1 2 Failed 63 | . . 2 5 . . . 9 . 4 1 . 6 . 1 1 . 4 . 2 . 2 . 6 13 2 . 2 3 Catastrophic 13 | . . 1 . . . . 3 . 1 . . . . . . . . . 1 . 1 . 2 1 . . 1 2 Database Lockouts . | . . . . . . . . . . . . . . . . . . . . . . . . . . . . . Manual 97 | . 5 2 8 . 1 . 18 . 5 3 . 8 . . 3 . 6 . 5 . 4 . 2 20 2 . 2 3 Terminals 106 | . 4 3 11 . . . 19 . 5 2 . 8 . 2 3 . 3 . 4 . 4 . 5 27 . . 3 3 Fabricators 13 | . . . . . . . . . . . . . . . . . 7 . 4 . . . 2 . . . . . Repair Stations . | . . . . . . . . . . . . . . . . . . . . . . . . . . . . . Recycling Units 1 | . 1 . . . . . . . . . . . . . . . . . . . . . . . . . . . Scanalyzers 25 | . . . . . . . 13 . . . . . . 3 . . . . . . . . 3 6 . . . . Garrison Access 23 | . . . . . . . 1 . . 3 . 3 . . . . 3 . 3 . 2 . 1 1 4 . . 2 Terminal Hacks 36 | . 3 1 5 . 1 . 5 . 1 . . 1 . 1 1 . . . 2 . 1 . 1 12 . . 1 . Record 3 | . . . . . . . . . . . . . . . . . . . . . . . . 3 . . . . Part Schematic 2 | . 2 . . . . . . . . . . . . . . . . . . . . . . . . . . . Prototype ID Bank 1 | . . . 1 . . . . . . . . . . . . . . . . . . . . . . . . . Open Door 2 | . . . . . . . . . . . . . . . . . . . . . . . . 1 . . 1 . Level Access Points 2 | . . . . . . . . . . . . . . 1 . . . . . . 1 . . . . . . . Branch Access Points 5 | . 1 . 1 . . . 2 . . . . . . . . . . . . . . . 1 . . . . . Fabricator Index 1 | . . . . . . . . . . . . . . . . . . . 1 . . . . . . . . . Unreport Threat 7 | . . . 1 . . . 2 . 1 . . 1 . . . . . . . . . . . 2 . . . . Recall Extermination 1 | . . . . . . . . . . . . . . . . . . . . . . . . 1 . . . . Hauler Manifests 1 | . . . 1 . . . . . . . . . . . . . . . . . . . . . . . . . Registered Components 1 | . . . 1 . . . . . . . . . . . . . . . . . . . . . . . . . Registered Prototypes 1 | . . . . . . . . . . . . . . . . . . . . . . . . 1 . . . . Zone Layout 8 | . . 1 . . . . 1 . . . . . . . 1 . . . 1 . . . . 4 . . . . EX-Prototype ID Bank 1 | . . . . . 1 . . . . . . . . . . . . . . . . . . . . . . . Fabricator Hacks 7 | . . . . . . . . . . . . . . . . . 4 . 2 . . . 1 . . . . . Load Schematic 4 | . . . . . . . . . . . . . . . . . 2 . 1 . . . 1 . . . . . Build 3 | . . . . . . . . . . . . . . . . . 2 . 1 . . . . . . . . . Repair Station Hacks . | . . . . . . . . . . . . . . . . . . . . . . . . . . . . . Recycling Unit Hacks . | . . . . . . . . . . . . . . . . . . . . . . . . . . . . . Scanalyzer 22 | . . . . . . . 13 . . . . . . 3 . . . . . . . . 1 5 . . . . Insert Component 14 | . . . . . . . 6 . . . . . . 2 . . . . . . . . 1 5 . . . . Analyze 8 | . . . . . . . 7 . . . . . . 1 . . . . . . . . . . . . . . Garrison Access Hacks 15 | . . . . . . . 1 . . 2 . 2 . . . . 2 . 2 . 1 . 1 . 2 . . 2 Unlock Access 7 | . . . . . . . 1 . . 1 . 1 . . . . 1 . 1 . 1 . . . 1 . . . Seal Access 3 | . . . . . . . . . . . . . . . . . . . . . . . 1 . . . . 2 Coupler Status 5 | . . . . . . . . . . 1 . 1 . . . . 1 . 1 . . . . . 1 . . . Unauthorized Hacks 26 | . 2 . 1 . . . 5 . . 2 . 2 . . 1 . 3 . 3 . 2 . 1 4 . . . . Terminals 16 | . 1 . 1 . . . 5 . . 1 . 1 . . 1 . . . 1 . 1 . 1 3 . . . . Botnet 16 | . 1 . 1 . . . 5 . . 1 . 1 . . 1 . . . 1 . 1 . 1 3 . . . . Fabricators 4 | . . . . . . . . . . . . . . . . . 2 . 2 . . . . . . . . . Prioritize 2 | . . . . . . . . . . . . . . . . . 1 . 1 . . . . . . . . . Siphon 2 | . . . . . . . . . . . . . . . . . 1 . 1 . . . . . . . . . Repair Stations . | . . . . . . . . . . . . . . . . . . . . . . . . . . . . . Recycling Units 1 | . 1 . . . . . . . . . . . . . . . . . . . . . . . . . . . Tunnel 1 | . 1 . . . . . . . . . . . . . . . . . . . . . . . . . . . Scanalyzers . | . . . . . . . . . . . . . . . . . . . . . . . . . . . . . Garrison Access 5 | . . . . . . . . . . 1 . 1 . . . . 1 . . . 1 . . 1 . . . . Reprogram 1 | . . . . . . . . . . . . . . . . . . . . . . . . 1 . . . . Eject 4 | . . . . . . . . . . 1 . 1 . . . . 1 . . . 1 . . . . . . . Data Cores Recovered . | . . . . . . . . . . . . . . . . . . . . . . . . . . . . . Used . | . . . . . . . . . . . . . . . . . . . . . . . . . . . . . Hacking Detections 48 | . 2 1 2 . . . 9 . 2 2 . 2 . 2 1 . 3 . 2 . 3 . 4 8 1 . 2 2 Full Trace Events 2 | . . . . . . . . . . . . . . . . . . . . . . . 1 1 . . . . Feedback Events . | . . . . . . . . . . . . . . . . . . . . . . . . . . . . . Feedback Blocked . | . . . . . . . . . . . . . . . . . . . . . . . . . . . . . Robot Schematics Acquired . | . . . . . . . . . . . . . . . . . . . . . . . . . . . . . Robots Built . | . . . . . . . . . . . . . . . . . . . . . . . . . . . . . Matter . | . . . . . . . . . . . . . . . . . . . . . . . . . . . . . Time . | . . . . . . . . . . . . . . . . . . . . . . . . . . . . . Total Robot Build Rating . | . . . . . . . . . . . . . . . . . . . . . . . . . . . . . Part Schematics Acquired 9 | . 2 . . . . . 6 . . . . . . 1 . . . . . . . . . . . . . . Parts Built 3 | . . . . . . . . . . . . . . . . . 3 . . . . . . . . . . . Matter 401 | . . . . . . . . . . . . . . . . . 255 . 146 . . . . . . . . . Time 182 | . . . . . . . . . . . . . . . . . 109 . 73 . . . . . . . . . Total Part Build Rating 9 | . . . . . . . . . . . . . . . . . 9 . . . . . . . . . . . Parts Repaired . | . . . . . . . . . . . . . . . . . . . . . . . . . . . . . Time . | . . . . . . . . . . . . . . . . . . . . . . . . . . . . . Parts Recycled . | . . . . . . . . . . . . . . . . . . . . . . . . . . . . . Recycled Matter . | . . . . . . . . . . . . . . . . . . . . . . . . . . . . . Retrieved Matter . | . . . . . . . . . . . . . . . . . . . . . . . . . . . . . Retrieved Components . | . . . . . . . . . . . . . . . . . . . . . . . . . . . . . Parts Scanalyzed 8 | . . . . . . . 6 . . . . . . 1 . . . . . . . . 1 . . . . . Part Schematics Acquired 7 | . . . . . . . 6 . . . . . . 1 . . . . . . . . . . . . . . Parts Damaged 2 | . . . . . . . 2 . . . . . . . . . . . . . . . . . . . . . Bothacking | -11 -10 -10 -9 -9 -9 -8 -8 -8 -8 -7 -7 -6 -6 -6 -5 -5 -5 -5 -4 -4 -3 -3 -3 -3 -2 -2 -2 -1 ------------ Run | Scr Mat Min Mat Min Exi Min Mat Gar Mat Fac Gar Fac Gar Fac Fac Was Fac Gar Fac Gar Res Gar Res Qua Res Gar Tes Acc Used RIF Installer 7 | . . . . . . . . 1 . . 1 . 1 . . . . 1 . 1 . 1 . . . 1 . . Hotswap 1 | . . . . . . . . . . . 1 . . . . . . . . . . . . . . . . . Signal Jammer 1 | . . . . . . . . . . . . . . . . . . . . . . . . . . 1 . . Zone Cloak 2 | . . . . . . . . . . . . . . . . . . 1 . 1 . . . . . . . . Patrol Navigation 1 | . . . . . . . . . . . . . 1 . . . . . . . . . . . . . . . Autoassimilate 1 | . . . . . . . . . . . . . . . . . . . . . . 1 . . . . . . Robots Hacked 132 | . . . . . . . . . . 3 . 8 5 12 2 . 2 . 1 8 9 17 20 12 . 12 15 6 Non-combat 24 | . . . . . . . . . . . . 2 . 5 1 . . . 1 . . . 5 5 . . 4 1 Combat 108 | . . . . . . . . . . 3 . 6 5 7 1 . 2 . . 8 9 17 15 7 . 12 11 5 Autoassimilated 3 | . . . . . . . . . . . . . . . . . . . . . . . 2 . . . 1 . Robot Hacks Applied 139 | . . . . . . . . . . 4 . 9 5 17 2 . 2 . 1 8 9 17 19 13 . 12 15 6 parse_system 1 | . . . . . . . . . . . . . . . . . . . . . . . 1 . . . . . start_evac 1 | . . . . . . . . . . . . . . . . . . . . . . . . . . . 1 . find_chute 1 | . . . . . . . . . . . . . . . 1 . . . . . . . . . . . . . map_walls 1 | . . . . . . . . . . . . . . 1 . . . . . . . . . . . . . . drop_inventory 2 | . . . . . . . . . . . . . . . . . . . . . . . 1 1 . . . . purge_threat 1 | . . . . . . . . . . . . 1 . . . . . . . . . . . . . . . . map_route 6 | . . . . . . . . . . . . . . 1 . . . . . . . . 1 1 . . 2 1 disable_scanner 2 | . . . . . . . . . . . . . . . . . . . . . . . . 1 . . 1 . find_garrison 3 | . . . . . . . . . . 1 . 1 . . 1 . . . . . . . . . . . . . link_fov 8 | . . . . . . . . . . . . . . 1 . . . . . . . . 3 3 . . 1 . disrupt_area 1 | . . . . . . . . . . . . . . . . . . . . . 1 . . . . . . . overload_power 1 | . . . . . . . . . . . . . . 1 . . . . . . . . . . . . . . amplify_resonance 2 | . . . . . . . . . . . . . . 1 . . . . . . . 1 . . . . . . reboot_system 9 | . . . . . . . . . . 1 . . . 1 . . 1 . . 1 . 4 1 . . . . . go_dormant 1 | . . . . . . . . . . . . . . . . . . . . . . . . 1 . . . . overwrite_iff 28 | . . . . . . . . . . 1 . 1 3 4 . . . . . 1 . 3 4 1 . 5 2 3 streamctrl_high 2 | . . . . . . . . . . . . . . . . . . . . . . . 1 . . 1 . . formatsys_low 6 | . . . . . . . . . . . . 1 . 3 . . . . . . . . . 2 . . . . formatsys_high 63 | . . . . . . . . . . 1 . 5 2 4 . . 1 . 1 6 8 9 7 3 . 6 8 2 Relay Couplers Released 87 | . . . . . . . . 4 . 3 9 3 11 5 . . 3 . . 13 4 17 . . . 15 . . Ejected 13 | . . . . . . . . . . 3 . 3 . . . . 3 . . . 4 . . . . . . . Machine Destruction 71 | . . . . . . . . 4 . . 9 . 11 2 . . . . . 13 . 17 . . . 15 . . Programmers 3 | . . . . . . . . . . . . . . 3 . . . . . . . . . . . . . . Attached 50 | . . . . . . . . . . 1 . 4 2 6 . . 3 . . 5 2 4 6 5 . 5 3 4 Robots Rewired 10 | . . . . . . . . . . . . . . . . . . . 1 . . . . . . 9 . . Allies Hacked 4 | . . . . . . . . . . . . . . 2 . . . . 1 . . . 1 . . . . . Hacks Repelled . | . . . . . . . . . . . . . . . . . . . . . . . . . . . . . Allies | -11 -10 -10 -9 -9 -9 -8 -8 -8 -8 -7 -7 -6 -6 -6 -5 -5 -5 -5 -4 -4 -3 -3 -3 -3 -2 -2 -2 -1 -------- Run | Scr Mat Min Mat Min Exi Min Mat Gar Mat Fac Gar Fac Gar Fac Fac Was Fac Gar Fac Gar Res Gar Res Qua Res Gar Tes Acc Total Allies 116 | . . . . . . . . . . 2 . 7 5 11 . . 1 . 2 7 8 12 14 10 . 21 11 5 Largest Group 7 | . . . . . . . . . . 2 1 5 2 4 . . 1 1 2 4 3 5 5 6 . 7 6 3 Highest-Rated Group 405 | . . . . . . . . . . 32 16 72 41 113 . . 29 29 75 199 145 269 235 248 . 405 319 222 Highest-Rated Ally 222 | . . . . . . . . . . 16 16 32 41 29 . . 29 29 49 58 64 64 64 47 . 69 69 222 Total Orders 39 | . . . . . . . . . . . 1 2 . 2 . . . 2 . 2 2 10 . . . 2 8 8 STAY 13 | . . . . . . . . . . . 1 1 . 1 . . . 1 . 1 1 6 . . . . 1 . FOLLOW 11 | . . . . . . . . . . . . 1 . . . . . 1 . 1 1 4 . . . . 3 . AID 1 | . . . . . . . . . . . . . . 1 . . . . . . . . . . . . . . EXPLORE 8 | . . . . . . . . . . . . . . . . . . . . . . . . . . 1 3 4 RETURN 6 | . . . . . . . . . . . . . . . . . . . . . . . . . . 1 1 4 Ally Attacks 541 | . . . . . . . . . . 4 1 22 12 42 . . 7 3 11 38 64 36 69 50 . 72 91 19 Total Damage 15343 | . . . . . . . . . . 49 . 382 218 750 . . 115 57 351 1014 1980 1268 2464 1091 . 2265 2609 730 Kills 83 | . . . . . . . . . . . . 1 1 8 . . 1 . 2 10 12 6 13 7 . 12 10 . Allies Corrupted 2 | . . . . . . . . . . . . . . 1 . . . . . . . . . . . . . 1 Allies Melted . | . . . . . . . . . . . . . . . . . . . . . . . . . . . . . Intel | -11 -10 -10 -9 -9 -9 -8 -8 -8 -8 -7 -7 -6 -6 -6 -5 -5 -5 -5 -4 -4 -3 -3 -3 -3 -2 -2 -2 -1 ------- Run | Scr Mat Min Mat Min Exi Min Mat Gar Mat Fac Gar Fac Gar Fac Fac Was Fac Gar Fac Gar Res Gar Res Qua Res Gar Tes Acc Robot Analysis Total . | . . . . . . . . . . . . . . . . . . . . . . . . . . . . . Derelict Logs Recovered . | . . . . . . . . . . . . . . . . . . . . . . . . . . . . . Drone Launches 12 | . . . . . . . . . . . . . . . . . . . . . . . . . . 2 3 7 Drone Recoveries 7 | . . . . . . . . . . . . . . . . . . . . . . . . . . 1 2 4 Exploration | -11 -10 -10 -9 -9 -9 -8 -8 -8 -8 -7 -7 -6 -6 -6 -5 -5 -5 -5 -4 -4 -3 -3 -3 -3 -2 -2 -2 -1 ------------- Run | Scr Mat Min Mat Min Exi Min Mat Gar Mat Fac Gar Fac Gar Fac Fac Was Fac Gar Fac Gar Res Gar Res Qua Res Gar Tes Acc Turns Passed 27694 | 113 596 759 408 229 1069 9 2141 961 908 531 1275 727 2033 1145 526 113 601 277 422 1410 1146 2312 1691 2074 325 2690 705 498 Spaces Moved 13417 | 82 282 401 153 144 724 23 1059 481 376 245 603 305 869 442 166 154 616 288 270 750 513 1091 636 564 83 1074 318 705 Core 200 | 12 . . . . . . . . . . . . . 1 . . 185 2 . . . . . . . . . . Treads 6996 | . 172 401 153 144 607 . 888 481 376 245 116 . 848 437 159 . . . 135 34 . 447 636 564 83 70 . . Legs 4087 | 70 110 . . . . . . . . . 487 305 21 4 7 . 36 2 14 551 513 644 . . . 1004 318 1 Wheels . | . . . . . . . . . . . . . . . . . . . . . . . . . . . . . Hover 953 | . . . . . . . . . . . . . . . . . . 84 . 165 . . . . . . . 704 Flight 1181 | . . . . . 117 23 171 . . . . . . . . 154 395 200 121 . . . . . . . . . Fastest Speed 34 | 50 120 160 160 160 40 40 40 158 158 158 178 180 180 180 210 34 34 44 47 56 150 180 175 185 172 145 143 48 Average Speed 151 | 109 172 160 160 160 142 40 143 167 158 177 182 184 181 196 244 50 50 54 116 127 191 182 179 190 179 159 147 48 Slowest Speed 2250 | 120 180 160 160 160 160 40 182 197 183 178 240 210 270 2250 280 64 150 200 210 240 210 220 230 200 200 330 148 142 Overloaded Moves . | . . . . . . . . . . . . . . . . . . . . . . . . . . . . . Propulsion Burnouts . | . . . . . . . . . . . . . . . . . . . . . . . . . . . . . Robots Hopped 19 | . . . . . 1 . 1 . . . . . . . . . 3 4 2 . . . . . . 8 . . Cave-ins Triggered 3 | . . . . . . . . . . . . . . . . . . . . . . . . 1 . . 2 . Exploration Rate (%) 42 | 5 50 82 26 47 93 7 88 50 36 7 60 10 67 19 8 75 18 37 8 90 13 84 20 69 4 80 55 29 Regions Visited 28 Branch Regions 6 Pre-discovered Areas 1 | . 1 . . . . . . . . . . . . . . . . . . . . . . . . . . . Known Exits Taken 13 | . 1 . 1 . . . 1 . . 1 . 1 . 1 . . 1 . 1 . 1 . 1 1 1 . 1 . Unknown Exits Taken 6 | 1 . 1 . 1 1 1 . . 1 . . . . . . . . . . . . . . . . . . . Scrap Searched 3 | . . 2 . . . 1 . . . . . . . . . . . . . . . . . . . . . . Spaces Dug 151 | . . 3 8 . . . 9 2 21 5 12 3 3 10 3 . . . . . 3 2 7 28 2 . 17 13 Terrain Destroyed 558 | . 34 10 8 . . . 29 2 21 5 42 3 76 96 3 . . . . 3 3 5 10 51 2 125 17 13 Melee 126 | . . 3 8 . . . 9 2 21 5 . 3 3 10 3 . . . . . . . 7 25 2 . 12 13 Projectile 64 | . . . . . . . 1 . . . . . . . . . . . . 3 3 5 3 26 . 18 5 . AOE 368 | . 34 7 . . . . 19 . . . 42 . 73 86 . . . . . . . . . . . 107 . . Terrain Rammed . | . . . . . . . . . . . . . . . . . . . . . . . . . . . . . Walls Destroyed . | . . . . . . . . . . . . . . . . . . . . . . . . . . . . . Machines Disabled . | . . . . . . . . . . . . . . . . . . . . . . . . . . . . . Actions | -11 -10 -10 -9 -9 -9 -8 -8 -8 -8 -7 -7 -6 -6 -6 -5 -5 -5 -5 -4 -4 -3 -3 -3 -3 -2 -2 -2 -1 --------- Run | Scr Mat Min Mat Min Exi Min Mat Gar Mat Fac Gar Fac Gar Fac Fac Was Fac Gar Fac Gar Res Gar Res Qua Res Gar Tes Acc Total 19358 | 102 366 468 222 143 765 22 1567 574 609 315 720 442 1197 638 251 208 889 387 353 1112 635 1392 1139 1396 231 1889 477 849 Wait 2806 | 5 11 31 5 . 1 . 311 14 186 32 21 54 132 46 46 12 171 50 27 128 20 74 324 592 106 363 24 20 Move 13346 | 81 281 400 152 143 721 22 1056 479 375 244 601 304 867 441 166 153 609 278 265 748 512 1089 635 563 82 1060 315 704 Hop 15 | . . . . . 1 . 1 . . . . . . . . . 3 4 2 . . . . . . 4 . . Pick Up 533 | 8 26 5 6 . 8 . 49 16 2 8 17 20 38 19 8 . 19 4 21 31 37 48 21 35 8 60 12 7 Fast Attach 147 | 5 1 . 2 . 1 . 18 4 4 3 2 3 5 3 1 . 13 2 4 16 7 9 13 . 3 16 3 9 Attach 296 | 1 3 2 5 . 2 . 3 5 . 5 9 10 22 27 6 3 11 5 7 22 6 13 12 21 9 44 18 25 Detach 78 | . . . . . . . 2 . . 2 1 2 . 11 1 . 5 . 1 6 1 . 4 6 3 14 14 5 Swap 228 | 1 6 2 . . 7 . 13 1 . 1 7 7 10 6 5 . 1 . 2 16 10 30 33 36 . 15 16 3 Drop 501 | 1 17 1 5 . 24 . 38 14 2 3 14 14 27 13 . 40 13 9 8 19 1 44 43 21 4 65 10 51 Fire 667 | . 21 23 1 . . . 60 25 . 4 16 14 41 37 2 . 3 19 15 77 40 53 38 77 . 68 26 7 Melee 414 | . . 3 45 . . . 10 10 40 12 18 13 43 30 16 . 11 . . . . . 14 43 14 42 32 18 Ram 13 | . . . . . . . . . . . . . . . . . 12 1 . . . . . . . . . . Kick . | . . . . . . . . . . . . . . . . . . . . . . . . . . . . . Crush 15 | . . 1 1 . . . 6 . . . . . . 4 . . . . 1 . . . . . 2 . . . Escape Stasis 210 | . . . . . . . . 6 . . 14 . 12 . . . 18 15 . 48 . 31 . . . 60 6 . Rewire 89 | . . . . . . . . . . 1 . 1 . 1 . . . . . 1 1 1 2 2 . 78 1 . Trap . | . . . . . . . . . . . . . . . . . . . . . . . . . . . . . Miscellaneous . | . . . . . . . . . . . . . . . . . . . . . . . . . . . . . Route ------- -11/Scrapyard -10/Materials (discovered 4 exits: *Mat x2 / *Min x2) -10/Mines (discovered 2 exits: *Mat x2) -9/Materials (discovered 2 exits: *Min x2) -9/Mines (discovered 2 exits: *Mat / *Exi) -9/Exiles (discovered 2 exits: [*Min x2]) -8/Mines -8/Materials (discovered 3 exits: *Fac x2 / Gar) -8/Garrison -8/Materials -7/Factory (discovered 2 exits: [*Low] / Gar) -7/Garrison (discovered 2 exits: *Fac x2) -6/Factory -6/Garrison (discovered 2 exits: *Fac x2) -6/Factory (discovered 4 exits: *Fac x4) -5/Factory -5/Waste -5/Factory -5/Garrison (discovered 2 exits: *Fac x2) -4/Factory -4/Garrison (discovered 3 exits: *Res x3) -3/Research (discovered 4 exits: Res x3 / Gar) -3/Garrison (discovered 3 exits: *Res x3) -3/Research (discovered 2 exits: *Qua x2) -3/Quarantine -2/Research -2/Garrison (discovered 3 exits: *Tes x3) -2/Testing -1/Access Tau Ceti IV Orbit History --------- Turn | Location | Event 9 | -11/Scrapyard | Discovered new exit (range 15) 114 | -11/Scrapyard | Entered Materials 311 | -10/Materials | Build established: Mutant 468 | -10/Materials | Discovered new exit (range 7) 590 | -10/Materials | Identified exit to Mines 660 | -10/Materials | Discovered new exit (range 15) 664 | -10/Materials | Destroyed 8 combat bots 710 | -10/Materials | Entered Mines 828 | -10/Mines | A weapon hastily lodged in a ceiling crevice suddenly fell to the ground 907 | -10/Mines | Discovered new exit (range 8) 935 | -10/Mines | Discovered new exit (range 11) 1034 | -10/Mines | YI-UF0 nonchalantly dropped a Grenade Launcher on the ground 1403 | -10/Mines | Received a Rocket Launcher from a helpful Derelict 1411 | -10/Mines | Assembled infested the area 1469 | -10/Mines | Entered Materials 1469 | -9/Materials | Evolved 2 slots: Propulsion x2 1594 | -9/Materials | Identified exit to Mines 1877 | -9/Materials | Entered Mines 2084 | -9/Mines | Discovered new exit (range 3) 2100 | -9/Mines | Deemed a non-threat by the Exiles lab entrance 2100 | -9/Mines | Discovered new exit (range 5) 2106 | -9/Mines | Entered Exiles 2130 | -9/Exiles | Discovered new exit (range 15) 2180 | -9/Exiles | Met 8R-AWN 2244 | -9/Exiles | Met EX-HEX 2371 | -9/Exiles | Met EX-DEC 2399 | -9/Exiles | Visited The Gauntlet 2639 | -9/Exiles | Discovered new exit (range 14) 2795 | -9/Exiles | Met EX-BIN 3042 | -9/Exiles | Aligned with FarCom system 3044 | -9/Exiles | Given EX-Vault access code 3081 | -9/Exiles | Opened EX-Vault 3111 | -9/Exiles | Found AWS/Thermal 3114 | -9/Exiles | Found Trap Reconfigurator 3116 | -9/Exiles | Found Modified TNC 3128 | -9/Exiles | Warned to stay clear of 0b10 Research branches 3130 | -9/Exiles | Exiles lab attacked by MAIN.C 3175 | -9/Exiles | Stole three prototypes: AWS/Thermal, Trap Reconfigurator, Modified TNC 3175 | -9/Exiles | Entered Mines 3180 | -8/Mines | Discovered new exit (range 12) 3184 | -8/Mines | Entered Materials 3184 | -8/Materials | Evolved 2 slots: Utility x2 3203 | -8/Materials | Lost 3 parts (3n) 4333 | -8/Materials | Discovered new exit (range 19) 4490 | -8/Materials | Build established: Hauler-Mutant 4895 | -8/Materials | Discovered new exit (range 12) 5272 | -8/Materials | Garrison activated, responded to threat 5323 | -8/Materials | Identified exit to Garrison 5325 | -8/Materials | Entered Garrison 5465 | -8/Garrison | Spotted B-75 Beast 5483 | -8/Garrison | Destroyed B-75 Beast 5638 | -8/Garrison | Triggered checkpoint 5725 | -8/Garrison | Discovered new exit (range 11) 5755 | -8/Garrison | Installed Relay Interface Framework 5804 | -8/Garrison | Triggered checkpoint 5854 | -8/Garrison | Garrison Relay disabled 6100 | -8/Garrison | Triggered checkpoint 6286 | -8/Garrison | Entered Materials 7150 | -8/Materials | Discovered new exit (range 11) 7194 | -8/Materials | Entered Factory 7194 | -7/Factory | Evolved 2 slots: Utility x2 7196 | -7/Factory | FarCom data flow suspended 7459 | -7/Factory | Discovered new exit (range 4) 7715 | -7/Factory | Identified exit to Garrison 7725 | -7/Factory | Entered Garrison 7725 | -7/Garrison | Accompanied by 1 ally 7778 | -7/Garrison | Triggered checkpoint 7819 | -7/Garrison | Garrison Relay disabled 7904 | -7/Garrison | Triggered checkpoint 7904 | -7/Garrison | Triggered checkpoint 7961 | -7/Garrison | Destroyed 17 combat bots 7977 | -7/Garrison | Lost 3 parts (1p2n) 8212 | -7/Garrison | Discovered new exit (range 15) 8290 | -7/Garrison | Triggered checkpoint 8405 | -7/Garrison | Garrison Relay disabled 8547 | -7/Garrison | Discovered new exit (range 12) 8583 | -7/Garrison | Expanded RIF knowledge: Hotswap 8717 | -7/Garrison | Build established: Bothacker-Mutant 8996 | -7/Garrison | Identified exit to Factory 9000 | -7/Garrison | Entered Factory 9000 | -6/Factory | Evolved 2 slots: Utility x2 9718 | -6/Factory | Identified exit to Garrison 9727 | -6/Factory | Entered Garrison 9838 | -6/Garrison | Lost 7 parts (1p4n2u) 9876 | -6/Garrison | Triggered checkpoint 9925 | -6/Garrison | Garrison Relay disabled 10061 | -6/Garrison | Build established: Hauler-Mutant 10197 | -6/Garrison | Spotted B-75 Beast 10200 | -6/Garrison | Triggered checkpoint 10588 | -6/Garrison | Triggered checkpoint 10708 | -6/Garrison | Destroyed B-75 Beast 10840 | -6/Garrison | Triggered checkpoint 10861 | -6/Garrison | Core integrity fell below 50% 10887 | -6/Garrison | Discovered new exit (range 14) 10898 | -6/Garrison | Lost 5 parts (1p1n2u1w) 10910 | -6/Garrison | Identified exit to Factory 11008 | -6/Garrison | Triggered checkpoint 11082 | -6/Garrison | Discovered exit to Factory (range 10) 11131 | -6/Garrison | Expanded RIF knowledge: Watcher Feeds 11162 | -6/Garrison | Triggered checkpoint 11191 | -6/Garrison | Garrison Relay disabled 11501 | -6/Garrison | Build established: Bothacker-Mutant 11689 | -6/Garrison | Garrison Relay disabled 11760 | -6/Garrison | Entered Factory 12369 | -6/Factory | P-60 Hacker assimilated allied Engineer 5a 12531 | -6/Factory | Identified exit to Factory 12706 | -6/Factory | Garrison activated, responded to threat 12810 | -6/Factory | First assault squad dispatched 12822 | -6/Factory | Core integrity fell below 20% 12905 | -6/Factory | Entered another Factory area 12905 | -5/Factory | Evolved 2 slots: Utility x2 13234 | -5/Factory | Lost 4 parts (1p3n) 13431 | -5/Factory | Sucked down chute 13431 | -5/Factory | Entered Waste 13446 | -5/Waste | EMP discharged 13458 | -5/Waste | Spotted C-40 Crusher 13494 | -5/Waste | Spotted C-40 Crusher 13494 | -5/Waste | Spotted C-40 Crusher 13506 | -5/Waste | Spotted C-40 Crusher 13507 | -5/Waste | Spotted C-40 Crusher 13510 | -5/Waste | Crushed by Compactor (1 part destroyed, 1 dropped) 13516 | -5/Waste | Crushed by Compactor (1 part destroyed, 1 dropped) 13524 | -5/Waste | Spotted C-40 Crusher 13540 | -5/Waste | Discovered new exit (range 10) 13544 | -5/Waste | Entered Factory 13619 | -5/Factory | System corruption reached 10% 13690 | -5/Factory | Core integrity fell below 50% 13864 | -5/Factory | Fabricated Adv. Signal Interpreter (x2) 13910 | -5/Factory | Fabricated Adv. Sensor Array (x1) 13996 | -5/Factory | Build established: Hacker-Mutant 14080 | -5/Factory | Identified exit to Garrison 14099 | -5/Factory | Garrison activated, responded to threat 14145 | -5/Factory | Entered Garrison 14145 | -5/Garrison | Accompanied by 1 ally 14230 | -5/Garrison | Discovered new exit (range 13) 14235 | -5/Garrison | Identified exit to Factory 14386 | -5/Garrison | Core integrity fell below 20% 14413 | -5/Garrison | Discovered exit to Factory (range 9) 14414 | -5/Garrison | Lost 5 parts (1n2u2w) 14420 | -5/Garrison | Expanded RIF knowledge: Zone Cloak 14422 | -5/Garrison | Entered Factory 14422 | -4/Factory | Evolved 2 slots: Utility x2 14524 | -4/Factory | Fabricated Adv. Sensor Array? 14727 | -4/Factory | Garrison activated, responded to threat 14831 | -4/Factory | Identified exit to Garrison 14844 | -4/Factory | Entered Garrison 14989 | -4/Garrison | Core integrity fell below 50% 15015 | -4/Garrison | Build established: Scavenger-Mutant 15080 | -4/Garrison | Lost 17 parts (1p6n6u4w) 15146 | -4/Garrison | Triggered checkpoint 15174 | -4/Garrison | Core integrity fell below 20% 15178 | -4/Garrison | Garrison Relay disabled 15205 | -4/Garrison | Lost 4 parts (1n2u1w) 15368 | -4/Garrison | Triggered checkpoint 15447 | -4/Garrison | Discovered new exit (range 9) 15464 | -4/Garrison | Identified exit to Research 15510 | -4/Garrison | Triggered checkpoint 15574 | -4/Garrison | Garrison Relay disabled 15702 | -4/Garrison | Discovered exit to Research (range 8) 15736 | -4/Garrison | Triggered checkpoint 15824 | -4/Garrison | Garrison Relay disabled 15910 | -4/Garrison | Triggered checkpoint 15921 | -4/Garrison | Triggered checkpoint 16009 | -4/Garrison | Discovered exit to Research (range 15) 16037 | -4/Garrison | Expanded RIF knowledge: Zone Cloak 16076 | -4/Garrison | Triggered checkpoint 16093 | -4/Garrison | Garrison Relay disabled 16254 | -4/Garrison | Entered Research 16254 | -3/Research | Accompanied by 3 allies 16254 | -3/Research | Evolved 2 slots: Utility x2 16324 | -3/Research | Build established: Botlord-Mutant 16379 | -3/Research | Identified exit to Research 17169 | -3/Research | Garrison activated, responded to threat 17176 | -3/Research | P-80 Master assimilated allied Enforcer 8a 17210 | -3/Research | Lost 3 parts (1n1u1w) 17355 | -3/Research | Garrison activated, responded to threat 17387 | -3/Research | Identified exit to Garrison 17400 | -3/Research | Entered Garrison 17452 | -3/Garrison | Triggered checkpoint 17509 | -3/Garrison | Garrison Relay disabled 17568 | -3/Garrison | Found Antimissile System 17586 | -3/Garrison | Found Antimissile System 18052 | -3/Garrison | Triggered checkpoint 18184 | -3/Garrison | Triggered checkpoint 18259 | -3/Garrison | Garrison Relay disabled 18412 | -3/Garrison | Discovered new exit (range 15) 18509 | -3/Garrison | Identified exit to Research 18659 | -3/Garrison | Triggered checkpoint 18704 | -3/Garrison | Lost 4 parts (1p2n1w) 18742 | -3/Garrison | Triggered checkpoint 19077 | -3/Garrison | Discovered exit to Research (range 13) 19154 | -3/Garrison | Triggered checkpoint 19188 | -3/Garrison | Garrison Relay disabled 19304 | -3/Garrison | Triggered checkpoint 19367 | -3/Garrison | Discovered exit to Research (range 8) 19391 | -3/Garrison | Expanded RIF knowledge: Autoassimilate 19434 | -3/Garrison | Triggered checkpoint 19447 | -3/Garrison | Garrison Relay disabled 19712 | -3/Garrison | Entered Research 19712 | -3/Research | Accompanied by 2 allies 20766 | -3/Research | Found Enh. Force Lance 20774 | -3/Research | Found Hvy. Reflective Plating 20813 | -3/Research | Found Prototype Device 20813 | -3/Research | Identified EM Dispersion Field 20828 | -3/Research | Identified exit to Quarantine 20890 | -3/Research | P-80 Master assimilated allied Warden 8e 21403 | -3/Research | Entered Quarantine 21464 | -3/Quarantine | Found Alien Artifact 21502 | -3/Quarantine | Found Alien Artifact 21702 | -3/Quarantine | Identified Terrabomb (x2) 21926 | -3/Quarantine | Lost 3 parts (3u) 21929 | -3/Quarantine | Destroyed 8 combat bots 21969 | -3/Quarantine | Found Exp. Signal Interpreter 21987 | -3/Quarantine | Found Exp. Signal Interpreter 22056 | -3/Quarantine | Found Alien Artifact 22062 | -3/Quarantine | Found Alien Artifact 22065 | -3/Quarantine | Found Alien Artifact 22067 | -3/Quarantine | Found Alien Artifact 22082 | -3/Quarantine | Found Alien Artifact 22085 | -3/Quarantine | Found Alien Artifact 22287 | -3/Quarantine | Discovered exit to Research (range 25) 22370 | -3/Quarantine | Found Alien Slashing Weapon 22398 | -3/Quarantine | Garrison activated, responded to threat 22487 | -3/Quarantine | Cryocooling Duct disabled 22502 | -3/Quarantine | Ambient heat levels rising (+20) 22502 | -3/Quarantine | Non-combat units ordered to evacuate 22574 | -3/Quarantine | Found Alien Artifact 22648 | -3/Quarantine | Met incapacitated Sigix Warrior 22648 | -3/Quarantine | Lockdown squad dispatched 22658 | -3/Quarantine | Acquired the access code to the Sigix quarantine chamber 22662 | -3/Quarantine | Unlocked Sigix quarantine chamber 22697 | -3/Quarantine | Crushed by falling debris 22697 | -3/Quarantine | System corruption reached 10% 22716 | -3/Quarantine | Spotted Lightning 22728 | -3/Quarantine | Lost 3 parts (3u) 22757 | -3/Quarantine | Build established: Hauler-Mutant 23395 | -3/Quarantine | Identified Phase Redirector 23395 | -3/Quarantine | Identified Dimensional Node Initializer (x2) 23395 | -3/Quarantine | Identified Transdimensional Reconstructor (x2) 23395 | -3/Quarantine | Identified Hpw. Transdimensional Reconstructor (x2) 23395 | -3/Quarantine | Identified Sigix Broadsword 23477 | -3/Quarantine | Entered Research 23477 | -2/Research | Evolved 2 slots: Propulsion x2 23691 | -2/Research | Identified exit to Garrison 23802 | -2/Research | Entered Garrison 23938 | -2/Garrison | Triggered checkpoint 24040 | -2/Garrison | Lost 4 parts (1p1n2u) 24101 | -2/Garrison | Garrison Relay disabled 24205 | -2/Garrison | Spotted B-90 Cyclops 24447 | -2/Garrison | Triggered checkpoint 24455 | -2/Garrison | Triggered checkpoint 24575 | -2/Garrison | Destroyed B-90 Cyclops 24637 | -2/Garrison | Triggered checkpoint 24752 | -2/Garrison | Discovered new exit (range 8) 24762 | -2/Garrison | Identified exit to Testing 24782 | -2/Garrison | Triggered checkpoint 24872 | -2/Garrison | Garrison Relay disabled 25247 | -2/Garrison | Build established: Botlord-Gladiator 25379 | -2/Garrison | Discovered exit to Testing (range 14) 25410 | -2/Garrison | Expanded RIF knowledge: Signal Jamming 25444 | -2/Garrison | Triggered checkpoint 25450 | -2/Garrison | Core integrity fell below 50% 25487 | -2/Garrison | Garrison Relay disabled 25586 | -2/Garrison | Triggered checkpoint 25677 | -2/Garrison | Garrison Relay disabled 26174 | -2/Garrison | Build established: Botlord-Mutant 26372 | -2/Garrison | Triggered checkpoint 26405 | -2/Garrison | Discovered exit to Testing (range 14) 26410 | -2/Garrison | Triggered checkpoint 26492 | -2/Garrison | Entered Testing 26492 | -2/Testing | Accompanied by 5 allies 26498 | -2/Testing | Spotted Alpha 7 26525 | -2/Testing | Spotted 18-8T6(L) 26530 | -2/Testing | Destroyed Alpha 7 26535 | -2/Testing | Allies destroyed 18-8T6(L) 26737 | -2/Testing | Spotted Striker 26742 | -2/Testing | First assault squad dispatched 26971 | -2/Testing | Scanned by Researcher 26995 | -2/Testing | Crushed by falling debris 27018 | -2/Testing | Spotted PG-G499WDDZY0 27018 | -2/Testing | Crushed by falling debris 27019 | -2/Testing | System corruption reached 10% 27049 | -2/Testing | Lost 5 parts (1n4u) 27068 | -2/Testing | Discovered new exit (range 27) 27134 | -2/Testing | Found Prototype Protection 27134 | -2/Testing | Identified SHELL Armor 27139 | -2/Testing | Found Prototype Protection 27141 | -2/Testing | Found Prototype Protection 27147 | -2/Testing | Found Prototype Protection 27195 | -2/Testing | Identified exit to Access 27197 | -2/Testing | Entered Access 27197 | -1/Access | Evolved 2 slots: Power x1, Utility x1 27204 | -1/Access | Identified Med. Regenerative Plating (x2) 27205 | -1/Access | Identified Hvy. Regenerative Plating 27631 | -1/Access | Found Unknown Device 27631 | -1/Access | Identified Quantum Capacitor 27671 | -1/Access | Spotted B-99 Colossus 27677 | -1/Access | Spotted B-99 Colossus 27686 | -1/Access | Used Terrabomb 27691 | -1/Access | Discovered new exit (range 5) 27695 | *** | Destroyed 0B10! Last Messages --------------- 27659_ K-01 Serf collects debris. 27659_ Connecting with Terminal... 27672_ Dropped Drone Bay. 27672_ >> Lost connection to Drone. 27675_ Discarded Relay Coupler [NC]. 27677_ Knocked back. 27677_ Slug penetrates Wall. 27677_ Penetrated by Slug. 27677_ Slug penetrates Wall. 27677_ Jacked B-99 Colossus... >>overwrite_iff Rewriting IFF filter. 27680_ Slug penetrates B-99 Colossus. 27681_ B-99 Colossus suffers critical hit. 27681_ Slug penetrates B-99 Colossus. 27685_ Dropped Adv. ECM Suite. 27686_ Terrabomb activated. 27691_ Main Access Shell breached. 27691_ EXIT=FOUND [Achievement: Payload Armed] Map ----- +----------------------------------------------------+ | ?????????????????????????????????????????????????? | | ?????????????????????????????????????????????????? | | ?????????????????????????????????????????????????? | | ?????????????????????????????????????????????????? | | ?????????????????????????????????????????????????? | | ?????????????????????????????????????????????????? | | ?????????????????????????????????????????????????? | | ?????????????????????????????????????????????????? | | ?????????????????????????????????????????????????? | | ?????????????????????????????????????????????##+#? | | ?????????????????????????????????????????????# ## | | ?????????????????????????????????????????????+ # | | ?????????????????????????????????????????????# # | | ?????????????????????????????????????????????# # | | ???????????????? ?#??????????????????????????# # | | ?????????????? " ?????????????????????????# # | | ?????????????? !" ?????????????????????????# # | | ?????????????? " ?????????????????????????# # | | ??????????????"" " ?????????????????????????# # | | ??????????????"" ""?????????????????????????# # | | ????????? "?? "" """"""?????????????????????# + | | ???????? "" S """ ?????????????????????# # | | ????????"""" "" " " ?????????????????????# ## | | ??????? " "" " " """"""????????????????# ## | | ??????? " "" " " " "????????????????# ## | | ??????? " " " " @" "????????????????# ## | | ?????? " = " " " "" "????????????????# ## | | ?????? """""""" " "????????????????# ## | | ????? " """""" " ????????# ## | | ????? ; " ????????# ## | | ????? ;"""""""""??????????????## ## | | ????? ;"??????????????????????# # | | ????? ""??????????????????????# | | ????? """""""""""#????????????# | | ????? "! " ???????# | | ????? " " #??#???# | | ######""" " " # #???# | | " " " ?# #???# | | " " " ?# #???# | | " " " " ??# #???# | | ""? " " " ?## ##??# ## | | """ ?" """""""""" """""""## #### #? | | " ?" " " " # % #? | | ?? " ] " " # #? | | ?? " + " # ##"#####? | | ########?? " ! " " " ## ####"##### | | ???????????? " """ " +! ## # | | ??????????????" """ " " ## # | | ??????????????????? " # ## + """ | | ?????????????????? " # ## # "T | +----------------------------------------------------+ Best States ------------- Heat Dissipation 106 Coolant Potential 80 Energy Generation 49 Energy Capacity 1230 Matter Stores 300 Matter Capacity 600 Sight Range 22 Robot Scan Range 16 Terrain Scan Range 20 Terrain Scan Density 210 ECM Strength 3 Jamming Range 16 Additional Mass Support 9 Base Temperature (-) 200 Armor Coverage 1950 Resistance: KI 25 Resistance: TH 25 Resistance: EM 75 Power Shielding 66 Weapon Cycling 25 Phase Shifting 15 Evasion (%) 63 Melee Accuracy 8 Target Analysis 8 Core Analysis 10 Recoil Reduction 6 Matter Filtering 50 Kinecelleration 40 Offensive Hacking 12 Defensive Hacking 14 Relay Coupler Types 131 Relay Coupler Value 5 Item Schematics ----------------- Hcp. Storage Unit | -10/Materials | Hacked Lrg. Storage Unit | -10/Materials | Hacked Adv. Sensor Array | -8/Materials | Scanalyzed VTOL Module | -8/Materials | Scanalyzed Hvy. Mace | -8/Materials | Scanalyzed Rocket Launcher | -8/Materials | Scanalyzed Imp. Datajack | -8/Materials | Scanalyzed Adv. Signal Interpreter | -8/Materials | Scanalyzed Adv. Terrain Scanner | -6/Factory | Scanalyzed Robot Schematics ------------------ None Fabricated ------------ Adv. Signal Interpreter | x2 | -5/Factory Adv. Sensor Array | x1 | -5/Factory Alien Tech Used ----------------- Sigix Broadsword Phase Redirector Terrabomb Achievements -------------- False Reunion Payload Armed Ultimate Loadout Challenges ------------ None Game ------ Seed MetafieldLayeredInitializer Manual? 0 Play Time 06:40:07 Cumulative 80.4 hours Start 2020.12.28 @ 18:41:17 End 2020.12.29 @ 02:04:29 Sessions 3 Manual Loads 0 Difficulty Rogue Special Mode None Game No. 18 Rogue 18 Adventurer 0 Explorer 0 Win Type 3 Total 5 Types 4/0/0/1/0/0/0/0/0 Lore% 30 Gallery% 57 Achievement% 44 Wizard Run 0 Options --------- ASCII 0 Keyboard 0 Movement Numpad Keybinds 0 Fullscreen 1 Font 18/TerminusBold Map View 76x50 Tactical HUD 1 Map Filters NONE Filters NONE Steam 1 RUN: 7de4f98c-732a-4573-a4c0-cb981c041901